bitfinex/quotes_BTCUSD_20220101
["timestamp","ask_amount","ask_price","bid_price","bid_amount"]
[1641036132946,0.18004064,46936.0,46934.0,0.0001]
[1641036133146,0.45796074,46936.0,46934.0,0.0001]
[1641036133346,0.18004064,46936.0,46934.0,0.0001]
[1641036133545,0.28004064,46936.0,46934.0,0.0001]
[1641036134046,0.57,46935.0,46934.0,0.0001]
[1641036134245,0.676596,46935.0,46934.0,0.0001]
[1641036134446,0.77789438,46935.0,46934.0,0.0001]
[1641036134646,0.053303,46933.0,46921.0,0.00935528]
[1641036134900,0.8545875,46928.0,46921.0,0.00935528]
[1641036135098,1.0980051,46928.0,46921.0,0.00935528]
[1641036135296,1.1480051,46928.0,46921.0,0.00935528]
[1641036135493,1.1480051,46928.0,46927.0,0.25229875]
[1641036135695,1.16683238,46928.0,46927.0,0.25229875]
[1641036135893,1.22013638,46928.0,46927.0,0.25229875]
[1641036136698,1.23984699,46928.0,46927.0,0.25229875]
[1641036136896,1.22101971,46928.0,46927.0,0.25229875]
[1641036137695,1.24256975,46928.0,46927.0,0.25229875]
[1641036137998,2.42743401,46928.0,46927.0,0.25229875]
[1641036138195,0.7,46927.0,46924.0,0.09055]
[1641036138396,0.05331,46924.0,46921.0,0.00935528]
[1641036138637,0.05331,46924.0,46923.0,0.09055]
[1641036139039,0.90126534,46924.0,46923.0,0.09055]
[1641036139238,0.90126534,46924.0,46921.0,0.01605979]
[1641036139439,1.00126534,46924.0,46921.0,0.01605979]
[1641036139639,1.02220563,46924.0,46921.0,0.01605979]
[1641036139841,1.02220563,46924.0,46923.0,0.09055]
[1641036140642,1.02220563,46924.0,46921.0,0.01605979]
[1641036140840,0.19550364,46924.0,46921.0,0.01605979]
[1641036141041,1.25084456,46924.0,46921.0,0.01605979]
[1641036141240,1.25084456,46924.0,46921.0,0.00870451]
[1641036141438,1.02252245,46924.0,46921.0,0.00870451]
[1641036141641,1.04264913,46924.0,46921.0,0.00870451]
[1641036141840,1.02139578,46924.0,46921.0,0.00870451]
[1641036142044,0.17343668,46924.0,46923.0,0.09055]
[1641036142402,0.17343668,46924.0,46921.0,0.00870451]
[1641036142597,0.07343668,46924.0,46921.0,0.00870451]
[1641036142796,0.05331,46924.0,46923.0,0.09055]
[1641036144297,0.05331,46924.0,46921.0,0.01548321]
[1641036144697,0.05331,46924.0,46921.0,0.10603321]
[1641036146339,0.05331,46924.0,46921.0,0.0993287]
[1641036147940,0.10331,46924.0,46921.0,0.0993287]
[1641036151293,0.10331,46924.0,46921.0,0.09255]
[1641036152791,0.05331,46924.0,46921.0,0.09255]
[1641036152990,0.12817416,46925.0,46921.0,0.09255]
[1641036152991,0.0207523,46925.0,46921.0,0.09255]
[1641036153192,0.0207523,46925.0,46924.0,0.09055]
[1641036154644,0.053289,46927.0,46924.0,0.09055]
[1641036155644,0.78008249,46927.0,46924.0,0.09055]
[1641036155946,0.72679349,46927.0,46924.0,0.09055]
[1641036156149,0.72679349,46927.0,46924.0,0.36325736]
[1641036156546,0.72679349,46927.0,46924.0,0.36334162]
[1641036156748,0.7473882,46927.0,46924.0,0.36334162]
[1641036157047,0.7473882,46927.0,46925.0,0.32218623]
[1641036157893,0.03933572,46927.0,46925.0,0.32218623]
[1641036158191,0.01874101,46927.0,46926.0,0.17246335]
[1641036158390,0.01874101,46927.0,46925.0,0.32218623]
[1641036159090,0.00861,46928.0,46925.0,0.32218623]
[1641036159387,0.00861,46928.0,46927.0,0.09055]
[1641036164445,0.00861,46928.0,46927.0,0.43805749]
[1641036164645,0.00861,46928.0,46927.0,0.77855049]
[1641036165100,0.00861,46928.0,46927.0,0.681043]
[1641036166602,0.00861,46928.0,46927.0,1.18865482]
[1641036167202,0.00861,46928.0,46927.0,1.2631275]
[1641036168003,0.00861,46928.0,46927.0,1.01395931]
[1641036168203,0.00861,46928.0,46927.0,1.26086603]
[1641036168642,0.00861,46928.0,46927.0,1.01395931]
[1641036168844,0.00861,46928.0,46927.0,0.76395931]
[1641036169745,0.00861,46928.0,46927.0,0.50551568]
[1641036170348,0.00861,46928.0,46927.0,1.22493673]
[1641036170545,0.00861,46928.0,46927.0,1.15046405]
[1641036170744,0.00861,46928.0,46927.0,1.42049679]
[1641036171349,0.00861,46928.0,46927.0,1.63049679]
[1641036171548,0.00861,46928.0,46927.0,1.70496947]
[1641036172146,0.00861,46928.0,46927.0,0.98554842]
[1641036173198,0.00861,46928.0,46927.0,1.7056114]
[1641036173396,0.00861,46928.0,46927.0,2.08402083]
[1641036174200,0.00861,46928.0,46927.0,2.13402083]
[1641036174398,0.00861,46928.0,46927.0,2.23402083]
[1641036175301,0.00861,46928.0,46927.0,1.39469627]
[1641036176446,0.00861,46928.0,46927.0,0.90019085]
[1641036176646,0.00861,46928.0,46927.0,0.71551568]
[1641036177147,0.00861,46928.0,46927.0,0.96406303]
[1641036177748,0.00861,46928.0,46927.0,0.97193153]
[1641036177948,0.00861,46928.0,46927.0,1.6860183]
[1641036178547,0.00861,46928.0,46927.0,0.96406303]
[1641036179649,0.00861,46928.0,46927.0,1.0293223]
[1641036179902,0.00861,46928.0,46927.0,1.1793223]
[1641036181399,0.00861,46928.0,46927.0,1.3793223]
[1641036181597,0.00861,46928.0,46927.0,2.5053223]
[1641036182197,0.00904122,46937.0,46927.0,2.5553223]
[1641036182398,0.00904122,46937.0,46936.0,1.041845]
[1641036182601,0.00904122,46937.0,46936.0,1.73712331]
[1641036182798,0.00904122,46937.0,46936.0,1.78712331]
[1641036183203,0.00904122,46937.0,46936.0,0.83712331]
[1641036183398,0.00904122,46937.0,46936.0,1.34987886]
[1641036184047,0.00904122,46937.0,46936.0,1.80189511]
[1641036184248,0.01896761,46947.0,46936.0,1.80189511]
[1641036184450,0.01896761,46947.0,46946.0,0.09055]
[1641036185151,0.02935723,46948.0,46946.0,0.09055]
[1641036185451,0.75615072,46948.0,46946.0,0.09055]
[1641036186051,0.80941672,46948.0,46946.0,0.09055]
[1641036186252,0.061976,46948.0,46946.0,0.09055]
[1641036186454,0.84786223,46947.0,46946.0,0.09055]
[1641036186852,0.061976,46948.0,46946.0,0.09055]
[1641036187052,1.1451665,46947.0,46946.0,0.09055]
[1641036187257,1.2951665,46947.0,46935.0,0.005]
[1641036187497,1.2951665,46947.0,46932.0,1.66442869]
[1641036187498,0.38012067,46941.0,46937.0,0.09055]
[1641036187697,0.42684567,46941.0,46932.0,0.9451]
[1641036187898,0.32684567,46941.0,46940.0,0.09055]
[1641036188095,0.65424986,46941.0,46940.0,0.09055]
[1641036188298,0.70424986,46941.0,46940.0,0.09055]
[1641036188497,0.85424986,46941.0,46940.0,0.09055]
[1641036189097,1.72213453,46941.0,46940.0,0.09055]
[1641036189295,1.77541553,46941.0,46940.0,0.09055]
[1641036189800,0.92823677,46941.0,46940.0,0.09055]
[1641036189997,0.94662063,46941.0,46940.0,0.09055]
[1641036190198,0.92591472,46941.0,46940.0,0.09055]
[1641036190397,0.92591472,46941.0,46940.0,0.30055]
[1641036191147,0.94690545,46941.0,46940.0,0.30055]
[1641036191447,1.21529341,46941.0,46940.0,0.30055]
[1641036191848,1.2094906,46941.0,46940.0,0.30055]
[1641036192050,1.22968539,46941.0,46940.0,0.30055]
[1641036192252,1.20869466,46941.0,46940.0,0.30055]
[1641036192452,2.26651743,46941.0,46940.0,0.21]
[1641036193049,2.28703219,46941.0,46940.0,0.21]
[1641036193249,2.2668374,46941.0,46940.0,0.21]
[1641036193452,2.05624783,46941.0,46940.0,0.21]
[1641036193650,1.77527882,46941.0,46940.0,0.21]
[1641036194150,1.79470862,46941.0,46940.0,0.21]
[1641036194352,1.77419386,46941.0,46940.0,0.21]
[1641036195097,1.79457469,46941.0,46940.0,0.21]
[1641036195295,1.77514489,46941.0,46940.0,0.21]
[1641036196195,0.94702001,46941.0,46940.0,0.21]
[1641036196396,2.0734685,46941.0,46940.0,0.21]
[1641036196797,1.77387113,46941.0,46940.0,0.21]
[1641036197197,1.77458008,46941.0,46940.0,0.21]
[1641036197599,0.60172385,46941.0,46940.0,0.21]
[1641036197797,1.74855678,46941.0,46940.0,0.21]
[1641036197998,1.22115259,46941.0,46940.0,0.21]
[1641036198297,1.21978985,46941.0,46940.0,0.21]
[1641036198499,1.16650885,46941.0,46940.0,0.21]
[1641036198750,1.16650885,46941.0,46940.0,0.205]
[1641036198751,0.01967592,46941.0,46940.0,0.205]
[1641036199149,0.04003583,46941.0,46940.0,0.205]
[1641036199351,0.02035991,46941.0,46940.0,0.205]
[1641036200352,0.053272,46942.0,46940.0,0.205]
[1641036200553,0.053272,46942.0,46940.0,0.29555]
[1641036200754,0.00861,46941.0,46940.0,0.29555]
[1641036201553,0.00861,46941.0,46940.0,0.29686484]
[1641036210294,0.00861,46941.0,46940.0,0.37133752]
[1641036212097,0.00861,46941.0,46940.0,0.79596607]
[1641036212297,0.00861,46941.0,46940.0,1.13645907]
[1641036213843,0.00861,46941.0,46940.0,1.18972007]
[1641036217798,0.49578907,46953.0,46947.0,0.00126507]
[1641036217994,0.49578907,46953.0,46952.0,0.09179267]
[1641036218194,0.38168907,46953.0,46952.0,0.23397267]
[1641036218798,0.38168907,46953.0,46952.0,1.26203194]
[1641036218997,0.00861,46953.0,46952.0,1.60252494]
[1641036219796,0.00861,46953.0,46952.0,2.10252494]
[1641036220398,0.00861,46953.0,46952.0,2.12414819]
[1641036220800,0.00861,46953.0,46952.0,2.07587819]
[1641036221247,0.00861,46953.0,46952.0,1.38941672]
[1641036221647,0.00861,46953.0,46952.0,1.59941672]
[1641036221848,0.00861,46953.0,46952.0,1.61762033]
[1641036222048,0.00861,46953.0,46952.0,1.59599708]
[1641036222450,0.00861,46953.0,46952.0,1.27375393]
[1641036222650,0.00861,46953.0,46952.0,0.82114732]
[1641036223052,0.00861,46953.0,46952.0,0.32114732]
[1641036223453,0.00861,46953.0,46952.0,0.33995698]
[1641036223655,0.00861,46953.0,46952.0,0.31935966]
[1641036224454,0.00861,46953.0,46952.0,0.3378893]
[1641036224656,0.00825972,46953.0,46952.0,0.31907964]
[1641036225399,0.00825972,46953.0,46952.0,0.33723934]
[1641036225599,0.00825972,46953.0,46952.0,0.3187097]
[1641036226399,0.00825972,46953.0,46952.0,0.33809979]
[1641036227201,0.00825972,46953.0,46952.0,0.33940232]
[1641036227401,0.00825972,46953.0,46952.0,0.27062589]
[1641036227700,0.00825972,46953.0,46952.0,0.2330761]
[1641036228502,0.00825972,46953.0,46952.0,0.21130253]
[1641036229749,0.36825972,46953.0,46952.0,0.21130253]
[1641036229949,0.00825972,46953.0,46952.0,0.21130253]
[1641036230149,0.10825972,46953.0,46952.0,0.21130253]
[1641036230350,0.83398761,46953.0,46952.0,0.21130253]
[1641036232253,1.14460173,46953.0,46952.0,0.21130253]
[1641036232696,0.41887384,46953.0,46952.0,0.21130253]
[1641036232899,0.10825972,46953.0,46952.0,0.21130253]
[1641036233095,0.00825972,46953.0,46952.0,0.21130253]
[1641036233897,0.73398761,46953.0,46952.0,0.21130253]
[1641036234097,0.83398761,46953.0,46952.0,0.21130253]
[1641036234295,0.10825972,46953.0,46952.0,0.21130253]
[1641036234498,0.63123247,46953.0,46952.0,0.21130253]
[1641036235097,0.63123247,46953.0,46952.0,0.26563253]
[1641036240312,0.53123247,46953.0,46952.0,0.26563253]
[1641036241514,0.63123247,46953.0,46952.0,0.26563253]
[1641036242413,0.64068247,46953.0,46952.0,0.26563253]
[1641036242814,1.5987724,46953.0,46952.0,0.26563253]
[1641036243215,0.63123247,46953.0,46952.0,0.26563253]
[1641036243854,0.78776547,46953.0,46952.0,0.26063253]
[1641036244056,0.83776547,46953.0,46952.0,0.26063253]
[1641036244258,1.8064531,46953.0,46952.0,0.26063253]
[1641036244554,1.6064531,46953.0,46952.0,0.26063253]
[1641036244755,1.7564531,46953.0,46952.0,0.26063253]
[1641036244956,0.31479272,46953.0,46952.0,0.26063253]
[1641036245356,0.83776547,46953.0,46952.0,0.26063253]
[1641036248000,0.84721547,46953.0,46952.0,0.26063253]
[1641036250496,0.83776547,46953.0,46952.0,0.26063253]
[1641036251359,0.83751527,46953.0,46952.0,0.26063253]
[1641036253159,1.80620658,46953.0,46952.0,0.26063253]
[1641036253559,0.83751527,46953.0,46952.0,0.26063253]
[1641036257503,1.80618241,46953.0,46952.0,0.26063253]
[1641036258203,0.92,46952.0,46951.0,0.00184679]
[1641036258658,0.92,46952.0,46947.0,0.00908842]
[1641036258659,1.02945,46952.0,46947.0,0.00908842]
[1641036258959,1.012729,46948.0,46947.0,0.00908842]
[1641036259160,1.44003646,46948.0,46947.0,0.00408842]
[1641036259361,1.18557162,46948.0,46947.0,0.00408842]
[1641036259966,1.71799437,46948.0,46947.0,0.00408842]
[1641036260363,0.053278,46945.0,46941.0,0.0086]
[1641036260766,0.57624991,46944.0,46941.0,0.0086]
[1641036260965,0.62624991,46944.0,46941.0,0.0086]
[1641036261165,0.72624991,46944.0,46941.0,0.0086]
[1641036261766,0.05328,46943.0,46941.0,0.0086]
[1641036261965,0.57625275,46943.0,46941.0,0.0086]
[1641036262165,0.67625275,46943.0,46941.0,0.0086]
[1641036262412,0.72953016,46943.0,46941.0,0.0086]
[1641036262608,0.72953016,46943.0,46941.0,0.2186]
[1641036262807,0.52297275,46942.0,46941.0,0.2186]
[1641036263005,0.72297275,46942.0,46941.0,0.2186]
[1641036264006,0.2,46942.0,46941.0,0.2186]
[1641036264405,0.05,46942.0,46941.0,0.2186]
[1641036264607,0.1,46942.0,46941.0,0.2186]
[1641036264806,0.05,46942.0,46941.0,0.2186]
[1641036265008,0.10328,46943.0,46941.0,0.2186]
[1641036265009,0.15328,46943.0,46941.0,0.2186]
[1641036265211,0.10328,46943.0,46941.0,0.2186]
[1641036273405,0.10328,46943.0,46942.0,0.09055]
[1641036273649,0.09058,46943.0,46942.0,0.09055]
[1641036275052,0.05328,46943.0,46942.0,0.09055]
[1641036277053,0.04057048,46943.0,46942.0,0.09055]
[1641036278510,0.04057048,46943.0,46942.0,0.09174516]
[1641036278712,0.76625618,46943.0,46942.0,0.09174516]
[1641036281953,0.04057048,46943.0,46942.0,0.09174516]
[1641036282354,0.76688505,46943.0,46942.0,0.09174516]
[1641036283254,0.75418505,46943.0,46942.0,0.09174516]
[1641036283655,0.72631457,46943.0,46942.0,0.09174516]
[1641036284156,0.72631457,46944.0,46942.0,0.09174516]
[1641036285203,0.77958157,46944.0,46942.0,0.09174516]
[1641036286008,0.72631457,46943.0,46942.0,0.09174516]
[1641036293908,0.72631457,46944.0,46942.0,0.09174516]
[1641036294303,0.84663332,46946.0,46942.0,0.09174516]
[1641036294304,0.72631457,46943.0,46942.0,0.09174516]
[1641036294703,0.72631457,46944.0,46942.0,0.09174516]
[1641036295203,0.84663332,46945.0,46942.0,0.09174516]
[1641036295604,0.72631251,46943.0,46942.0,0.09174516]
[1641036298656,0.72631251,46944.0,46942.0,0.09174516]
[1641036300001,0.77957951,46944.0,46942.0,0.09174516]
[1641036300405,0.72631251,46944.0,46942.0,0.09174516]
[1641036300604,0.106531,46949.0,46942.0,0.09174516]
[1641036300802,0.106531,46949.0,46942.0,0.00119516]
[1641036301002,0.156531,46949.0,46948.0,0.09055]
[1641036301704,0.05,46949.0,46948.0,0.09055]
[1641036302103,0.05,46950.0,46948.0,0.09055]
[1641036302303,0.103265,46950.0,46948.0,0.09055]
[1641036302602,0.05,46950.0,46948.0,0.09055]
[1641036303404,0.51866962,46951.0,46948.0,0.09055]
[1641036303855,0.106531,46949.0,46948.0,0.09055]
[1641036304056,0.106531,46949.0,46948.0,0.09174497]
[1641036304655,0.57193462,46951.0,46948.0,0.09174497]
[1641036304956,0.51866962,46951.0,46948.0,0.09174497]
[1641036305357,0.106531,46950.0,46948.0,0.09174497]
[1641036307601,0.101531,46950.0,46948.0,0.09174497]
[1641036309103,0.101531,46950.0,46948.0,0.09267102]
[1641036317007,0.71421802,46949.0,46948.0,0.09267102]
[1641036317609,0.76421802,46949.0,46948.0,0.09267102]
[1641036318012,1.15107058,46949.0,46948.0,0.00212102]
[1641036318653,1.25228529,46949.0,46948.0,0.00212102]
[1641036319253,1.32781261,46949.0,46948.0,0.00212102]
[1641036319655,1.32781261,46949.0,46941.0,0.22769349]
[1641036319656,1.32781261,46949.0,46941.0,0.31824349]
[1641036319959,0.36220882,46943.0,46941.0,0.22769349]
[1641036320256,0.6574599,46942.0,46941.0,0.2186]
[1641036320455,0.6574599,46942.0,46941.0,0.30915]
[1641036320657,1.47167792,46942.0,46941.0,0.2186]
[1641036321260,1.47167792,46942.0,46941.0,0.23748817]
[1641036322507,1.47167792,46942.0,46941.0,0.2186]
[1641036325108,0.88974534,46942.0,46941.0,0.30915]
[1641036325306,1.16344341,46942.0,46941.0,0.30915]
[1641036325706,0.88974534,46942.0,46941.0,0.30915]
[1641036326355,1.16310463,46942.0,46941.0,0.32878833]
[1641036326755,0.88974534,46942.0,46941.0,0.32878833]
[1641036327156,0.17552732,46942.0,46941.0,0.32878833]
[1641036327356,1.02219977,46942.0,46941.0,0.34946244]
[1641036327556,1.02219977,46942.0,46941.0,0.32982411]
[1641036327957,0.17552732,46942.0,46941.0,0.32982411]
[1641036328355,0.17552732,46942.0,46941.0,0.35043662]
[1641036328555,0.17552732,46942.0,46941.0,0.32976251]
[1641036328856,0.07552732,46942.0,46941.0,0.32976251]
[1641036329257,1.66972885,46943.0,46941.0,0.34998892]
[1641036329457,1.66972885,46943.0,46941.0,0.32937641]
[1641036329913,1.72301007,46943.0,46941.0,0.32937641]
[1641036330311,0.34929298,46942.0,46941.0,0.32937641]
[1641036330807,0.17552732,46942.0,46941.0,0.3513059]
[1641036331008,0.17552732,46942.0,46941.0,0.33107949]
[1641036331208,1.11168274,46942.0,46941.0,0.33107949]
[1641036331407,1.11168274,46942.0,46941.0,0.35300296]
[1641036331611,1.11168274,46942.0,46941.0,0.33107347]
[1641036332208,1.38525508,46942.0,46941.0,0.33107347]
[1641036332408,1.38525508,46942.0,46941.0,0.35029677]
[1641036332609,1.38525508,46942.0,46941.0,0.3283733]
[1641036332810,1.11168274,46942.0,46941.0,0.3283733]
[1641036333412,1.11168274,46942.0,46941.0,0.34904891]
[1641036333652,1.02220371,46942.0,46941.0,0.32982561]
[1641036334354,1.02220371,46942.0,46941.0,0.34902277]
[1641036334552,1.02220371,46942.0,46941.0,0.32834716]
[1641036335356,1.02220371,46942.0,46941.0,0.34674082]
[1641036335554,1.02220371,46942.0,46941.0,0.32754366]
[1641036336353,1.02220371,46942.0,46941.0,0.34914235]
[1641036336554,1.02220371,46942.0,46941.0,0.33074869]
[1641036337407,1.02220371,46942.0,46941.0,0.35143316]
[1641036338008,1.29340429,46942.0,46941.0,0.35143316]
[1641036338207,1.02220371,46942.0,46941.0,0.35143316]
[1641036338406,0.44983251,46942.0,46941.0,0.3716126]
[1641036338607,0.44983251,46942.0,46941.0,0.32932944]
[1641036339209,1.38611025,46942.0,46941.0,0.32932944]
[1641036339407,1.38611025,46942.0,46941.0,0.34891039]
[1641036339908,1.2622597,46942.0,46941.0,0.34891039]
[1641036340111,1.2622597,46942.0,46941.0,0.30915]
[1641036340309,1.2622597,46942.0,46941.0,0.32830261]
[1641036341555,1.2622597,46942.0,46941.0,0.32880481]
[1641036342554,1.2588049,46942.0,46941.0,0.32880481]
[1641036343058,1.2588049,46942.0,46941.0,0.34923219]
[1641036343255,1.2588049,46942.0,46941.0,0.32957738]
[1641036343456,1.2588049,46942.0,46941.0,0.35113103]
[1641036343655,1.2588049,46942.0,46941.0,0.33070365]
[1641036344456,1.2588049,46942.0,46941.0,0.3523687]
[1641036344657,1.2588049,46942.0,46941.0,0.33081505]
[1641036345304,1.2588049,46942.0,46941.0,0.35005185]
[1641036345504,1.2588049,46942.0,46941.0,0.3283868]
[1641036346108,1.03627774,46942.0,46941.0,0.3283868]
[1641036346306,0.1,46942.0,46941.0,0.3283868]
[1641036346507,0.94682842,46942.0,46941.0,0.34721804]
[1641036346706,0.94682842,46942.0,46941.0,0.32798124]
[1641036346707,0.84682842,46942.0,46941.0,0.32798124]
[1641036346908,0.84682842,46942.0,46941.0,0.58401628]
[1641036347107,0.84682842,46942.0,46941.0,0.83157842]
[1641036347507,0.92449902,46946.0,46941.0,0.85219601]
[1641036347707,0.92449902,46942.0,46941.0,0.83336477]
[1641036348309,0.96762566,46948.0,46941.0,0.83336477]
[1641036348509,0.84759382,46942.0,46941.0,0.74028599]
[1641036348760,0.84759382,46942.0,46941.0,0.83083599]
[1641036348964,0.7264926,46942.0,46941.0,0.83083599]
[1641036349362,0.7264926,46942.0,46941.0,0.85279331]
[1641036349663,0.7137926,46942.0,46941.0,0.8347045]
[1641036350263,0.84759382,46943.0,46941.0,0.8347045]
[1641036350464,0.84759382,46943.0,46942.0,0.29095852]
[1641036350665,0.84759382,46947.0,46942.0,0.29095852]
[1641036350868,0.84759382,46947.0,46944.0,0.00126762]
[1641036351064,0.84759382,46947.0,46944.0,0.05452262]
[1641036351262,0.84759382,46947.0,46945.0,0.2716559]
[1641036351463,0.84759382,46947.0,46946.0,0.09055]
[1641036351762,0.84759382,46947.0,46946.0,0.35977879]
[1641036352422,0.84759382,46947.0,46946.0,0.11014006]
[1641036353418,0.9287052,46952.0,46946.0,0.11014006]
[1641036353615,0.91961167,46951.0,46947.0,0.24704622]
[1641036353819,0.97287267,46951.0,46950.0,0.09055]
[1641036360609,0.97287267,46951.0,46950.0,0.09174495]
[1641036360809,0.91961167,46951.0,46950.0,0.09174495]
[1641036361507,0.91961167,46952.0,46950.0,0.09174495]
[1641036362107,0.733566,46953.0,46950.0,0.09174495]
[1641036362310,0.733566,46953.0,46950.0,0.07786395]
[1641036362708,0.00825972,46953.0,46950.0,0.07786395]
[1641036362909,0.00825972,46953.0,46950.0,0.05595495]
[1641036364162,0.00825972,46953.0,46951.0,0.24547174]
[1641036365761,0.00825972,46953.0,46951.0,0.24712668]
[1641036365961,0.00825972,46953.0,46951.0,0.00165494]
[1641036375210,0.00825972,46953.0,46951.0,0.21165494]
[1641036376012,0.00825972,46953.0,46951.0,0.45679104]
[1641036376311,0.00825972,46953.0,46951.0,0.21165494]
[1641036376513,0.00825972,46953.0,46951.0,0.45312789]
[1641036376712,0.00825972,46953.0,46951.0,0.21165494]
[1641036376913,0.00825972,46953.0,46952.0,0.24133382]
[1641036381969,0.00825972,46953.0,46952.0,0.56440821]
[1641036382164,0.00825972,46953.0,46952.0,0.90490121]
[1641036382607,0.00825972,46953.0,46952.0,0.92648075]
[1641036383806,0.00825972,46953.0,46952.0,0.94832867]
[1641036384009,0.00825972,46953.0,46952.0,0.92674913]
[1641036384806,0.00825972,46953.0,46952.0,0.92611851]
[1641036385810,0.00825972,46953.0,46952.0,0.94432571]
[1641036386009,0.00825972,46953.0,46952.0,0.92310841]
[1641036386659,0.00825972,46953.0,46952.0,0.9418799]
[1641036386861,0.00825972,46953.0,46952.0,0.9236727]
[1641036387862,0.00825972,46953.0,46952.0,0.9443533]
[1641036388063,0.00825972,46953.0,46952.0,0.92558181]
[1641036388664,0.00825972,46953.0,46952.0,0.94419483]
[1641036391918,0.00825972,46953.0,46952.0,0.96320212]
[1641036392816,0.00825972,46953.0,46952.0,0.98486153]
[1641036393016,0.00825972,46953.0,46952.0,0.92656062]
[1641036393859,0.00825972,46953.0,46952.0,0.94703245]
[1641036394060,0.00825972,46953.0,46952.0,0.92537304]
[1641036394860,0.00825972,46953.0,46952.0,0.94460768]
[1641036395063,0.00825972,46953.0,46952.0,0.92413585]
[1641036396363,0.00825972,46953.0,46952.0,0.94299001]
[1641036397417,0.00825972,46953.0,46952.0,0.96413933]
[1641036397616,0.00825972,46953.0,46952.0,0.92605053]
[1641036397812,0.00825972,46953.0,46952.0,0.94664753]
[1641036398011,0.00825972,46953.0,46952.0,0.92549821]
[1641036398811,0.00825972,46953.0,46952.0,0.94360844]
[1641036399013,0.00825972,46953.0,46952.0,0.92301144]
[1641036399612,0.00825972,46953.0,46952.0,0.92428596]
[1641036399812,0.00825972,46953.0,46952.0,1.04387506]
[1641036400111,0.00825972,46953.0,46952.0,1.02576483]
[1641036400314,0.00825972,46953.0,46952.0,0.92770292]
[1641036401016,0.00825972,46953.0,46952.0,1.05053344]
[1641036401270,0.00825972,46953.0,46952.0,1.02900625]
[1641036401869,0.00825972,46953.0,46952.0,1.04967591]
[1641036402071,0.00825972,46953.0,46952.0,1.0295294]
[1641036402272,0.00825972,46953.0,46952.0,0.92684539]
[1641036403073,0.00825972,46953.0,46952.0,0.9259653]
[1641036403971,0.00825972,46953.0,46952.0,0.92495135]
[1641036404473,0.00825972,46953.0,46952.0,0.68361753]
[1641036404920,0.00825972,46953.0,46952.0,0.94745399]
[1641036405121,0.00825972,46953.0,46952.0,0.92867837]
[1641036405922,0.00825972,46953.0,46952.0,0.94796052]
[1641036406119,0.00825972,46953.0,46952.0,0.92885314]
[1641036406921,0.00825972,46953.0,46952.0,0.95032037]
[1641036408022,0.00825972,46953.0,46952.0,0.96919038]
[1641036408227,0.00825972,46953.0,46952.0,0.68371192]
[1641036409058,0.00825972,46953.0,46952.0,0.70480462]
[1641036409260,0.00825972,46953.0,46952.0,0.68593461]
[1641036409959,0.00825972,46953.0,46952.0,0.70603012]
[1641036410160,0.00825972,46953.0,46952.0,0.68493742]
[1641036410965,0.00825972,46953.0,46952.0,0.70614785]
[1641036411161,0.00825972,46953.0,46952.0,0.68605234]
[1641036411963,0.00825972,46953.0,46952.0,0.70688312]
[1641036412165,0.00825972,46953.0,46952.0,0.68567269]
[1641036412418,0.00825972,46953.0,46952.0,0.93076898]
[1641036413011,0.00825972,46953.0,46952.0,0.94842546]
[1641036413213,0.00825972,46953.0,46952.0,0.92759468]
[1641036414012,0.00825972,46953.0,46952.0,0.94741499]
[1641036414214,0.00825972,46953.0,46952.0,0.92568621]
[1641036414910,0.00825972,46953.0,46952.0,0.94630242]
[1641036415715,0.00825972,46953.0,46952.0,0.9058659]
[1641036416161,0.00825972,46953.0,46952.0,0.92695769]
[1641036416963,0.00825972,46953.0,46952.0,0.94838044]
[1641036417163,0.00825972,46953.0,46952.0,0.92728865]
[1641036418162,0.00825972,46953.0,46952.0,0.68405823]
[1641036418363,0.00825972,46953.0,46952.0,0.93106979]
[1641036418965,0.00825972,46953.0,46952.0,0.95257159]
[1641036419165,0.00825972,46953.0,46952.0,0.93335527]
[1641036419563,0.00825972,46953.0,46952.0,0.68634371]
[1641036419764,0.00825972,46953.0,46952.0,0.92773919]
[1641036420016,0.00825972,46953.0,46952.0,0.94639181]
[1641036420213,0.00825972,46953.0,46952.0,1.02489001]
[1641036420413,0.00825972,46953.0,46952.0,0.92489001]
[1641036421013,0.00825972,46953.0,46952.0,0.94579882]
[1641036421215,0.00825972,46953.0,46952.0,0.9271462]
[1641036421417,0.00825972,46953.0,46952.0,0.68575072]
[1641036422013,0.00825972,46953.0,46952.0,0.70536691]
[1641036422212,0.00825972,46953.0,46952.0,0.92642495]
[1641036422415,0.00825972,46953.0,46952.0,0.6844581]
[1641036423116,0.00825972,46953.0,46952.0,0.92547332]
[1641036423766,0.00825972,46953.0,46952.0,0.92758315]
[1641036424063,0.00825972,46953.0,46952.0,0.94761819]
[1641036424263,0.00825972,46953.0,46952.0,0.92589217]
[1641036424467,0.00825972,46953.0,46952.0,0.68487695]
[1641036424864,0.00825972,46953.0,46952.0,0.36052804]
[1641036425064,0.00825972,46953.0,46952.0,0.38013191]
[1641036425265,0.00825972,46953.0,46952.0,0.36009687]
[1641036425964,0.00825972,46953.0,46952.0,0.37995139]
[1641036426164,0.00825972,46953.0,46952.0,0.36034752]
[1641036426966,0.00582092,46954.0,46952.0,0.01985452]
[1641036427266,0.00582092,46954.0,46953.0,0.05595495]
[1641036427918,0.01443092,46954.0,46953.0,0.05595495]
[1641036433562,0.28508164,46954.0,46953.0,0.05595495]
[1641036433763,1.13127231,46954.0,46953.0,0.05595495]
[1641036433963,1.1292034,46954.0,46953.0,0.05595495]
[1641036434166,0.28193303,46954.0,46953.0,0.05595495]
[1641036434363,1.04457291,46954.0,46953.0,0.05595495]
[1641036434764,1.42401855,46954.0,46953.0,0.05595495]
[1641036435016,0.39387656,46954.0,46953.0,0.05595495]
[1641036435415,1.42401855,46954.0,46953.0,0.05595495]
[1641036436016,0.39387656,46954.0,46953.0,0.05595495]
[1641036436420,1.42401855,46954.0,46953.0,0.05595495]
[1641036443112,1.41834422,46954.0,46953.0,0.05595495]
[1641036457512,0.38820223,46954.0,46953.0,0.05595495]
[1641036457715,0.00875659,46954.0,46953.0,0.05595495]
[1641036464680,0.00875659,46954.0,46952.0,0.00284816]
[1641036464925,0.00875659,46954.0,46953.0,0.05595495]
[1641036465119,0.00875659,46954.0,46952.0,0.00284816]
[1641036469463,0.00875659,46954.0,46953.0,0.05595495]
[1641036470663,0.73512895,46954.0,46953.0,0.05595495]
[1641036471264,0.00875659,46954.0,46953.0,0.05595495]
[1641036476663,0.00875659,46954.0,46953.0,0.39644795]
[1641036477464,0.00875659,46954.0,46953.0,0.41708397]
[1641036478568,0.00875659,46954.0,46953.0,0.41605012]
[1641036479574,0.00875659,46954.0,46953.0,0.43630091]
[1641036479768,0.00875659,46954.0,46953.0,0.41669874]
[1641036480420,0.00875659,46954.0,46953.0,0.43648644]
[1641036480915,0.00875659,46954.0,46953.0,0.41623565]